bitfinex/quotes_ETHUSD_20250924
["timestamp","ask_amount","ask_price","bid_price","bid_amount"]
[1758729928112,4.06900001,4172.9,4172.2,0.6959]
[1758729928314,4.06900001,4172.9,4172.3,0.2376]
[1758729929039,0.00100001,4172.9,4172.3,0.2376]
[1758729929638,0.00100001,4172.9,4172.8,2.39647239]
[1758729930159,0.00100001,4172.9,4172.7,0.02396529]
[1758729930442,0.2356,4172.8,4172.6,2.39653009]
[1758729930589,0.2356,4172.8,4172.7,2.39652982]
[1758729931427,1.13641,4172.8,4171.7,0.002]
[1758729931624,0.635878,4172.5,4171.7,2.39909706]
[1758729931939,4.068,4172.4,4172.2,2.39681702]
[1758729932092,4.81227142,4172.4,4172.1,2.39885946]
[1758729932422,4.81227142,4172.4,4172.1,0.002]
[1758729932627,1.40651494,4172.3,4172.1,0.002]
[1758729932922,1.91618636,4172.3,4172.1,0.002]
[1758729933130,1.91618636,4172.3,4172.2,2.39681702]
[1758729933327,1.91618636,4172.3,4172.1,0.002]
[1758729933328,0.2346,4172.2,4172.1,0.002]
[1758729933490,1.34269006,4172.2,4172.1,0.002]
[1758729934197,4.7301,4172.2,4172.1,0.002]
[1758729934531,5.23977142,4172.2,4172.1,0.002]
[1758729935698,7.63658844,4172.2,4172.1,0.002]
[1758729935897,8.27473058,4172.2,4172.1,0.002]
[1758729936098,5.87790884,4172.2,4172.1,0.002]
[1758729936297,10.66601201,4172.2,4172.1,0.002]
[1758729936831,11.66866291,4172.2,4172.1,0.002]
[1758729937029,10.81987459,4172.2,4172.1,0.002]
[1758729937244,11.61992419,4172.2,4172.1,0.002]
[1758729937542,10.76987459,4172.2,4172.1,0.002]
[1758729938300,11.61946469,4172.2,4172.1,0.002]
[1758729938499,13.61646469,4172.2,4172.1,0.002]
[1758729938921,12.76687459,4172.2,4172.1,0.002]
[1758729939232,13.6160634,4172.2,4172.1,0.002]
[1758729939431,14.04181754,4172.2,4172.1,0.002]
[1758729939739,14.04181754,4172.2,4171.7,0.002]
[1758729939740,4.63004683,4171.8,4171.7,0.002]
[1758729939921,2.39733416,4171.3,4171.2,0.002]
[1758729940097,8.97200558,4171.3,4171.2,0.002]
[1758729940300,12.20876623,4171.3,4171.2,0.002]
[1758729940799,2.39789371,4170.4,4170.1,0.02]
[1758729941104,6.065,4170.3,4170.1,0.02]
[1758729941314,0.6065,4170.2,4170.1,0.02]
[1758729941518,6.065,4170.2,4170.1,0.02]
[1758729942148,6.5067,4170.2,4170.1,0.02]
[1758729942450,6.065,4170.2,4170.1,0.02]
[1758729943155,6.3004,4170.2,4170.1,0.02]
[1758729943351,6.065,4170.2,4170.1,0.02]
[1758729943527,0.792,4171.0,4170.2,2.39796652]
[1758729943847,1.997,4170.4,4170.1,0.719]
[1758729944050,4.068,4170.3,4170.1,0.02]
[1758729944424,0.6771,4170.2,4170.1,0.02]
[1758729944763,0.2354,4170.2,4170.1,0.02]
[1758729945265,3.86706652,4170.2,4170.1,0.02]
[1758729945465,2.7020896,4170.2,4170.1,0.02]
[1758729946447,8.10005612,4170.2,4170.1,0.02]
[1758729946646,3.19054168,4169.2,4169.1,0.02]
[1758729946811,12.25554168,4169.2,4169.1,0.02]
[1758729947012,14.39803902,4169.2,4169.1,0.02]
[1758729947448,11.99949734,4169.2,4169.1,0.02]
[1758729947749,14.39803902,4169.2,4169.1,0.02]
[1758729948649,11.20749734,4169.2,4169.1,0.02]
[1758729949016,13.60603902,4169.2,4169.1,0.02]
[1758729949667,11.20749734,4169.2,4169.1,0.02]
[1758729950259,14.39803902,4169.2,4169.1,0.02]
[1758729950634,12.40203902,4169.2,4169.1,0.022]
[1758729950860,5.93449734,4169.2,4169.1,0.022]
[1758729951067,12.93464168,4169.2,4169.1,0.022]
[1758729951734,13.43943915,4169.2,4169.1,0.022]
[1758729953073,13.81561032,4169.2,4169.1,0.022]
[1758729953558,11.41706864,4169.2,4169.1,0.022]
[1758729953963,13.81561032,4169.2,4169.1,0.022]
[1758729954160,5.50237254,4169.2,4169.1,0.022]
[1758729954359,9.94796864,4169.2,4169.1,0.022]
[1758729954563,3.50479747,4169.2,4169.1,0.022]
[1758729954762,4.069,4169.2,4169.1,3.11959921]
[1758729954937,6.067,4169.2,4169.1,0.721]
[1758729955271,0.2354,4170.0,4169.1,0.721]
[1758729955272,0.63598378,4170.1,4169.1,0.022]
[1758729955430,1.998,4169.7,4169.4,2.3983949]
[1758729955630,4.069,4169.6,4169.5,0.2302]
[1758729955830,4.069,4169.6,4169.3,2.39846642]
[1758729956047,3.0,4169.5,4169.4,0.2302]
[1758729956243,3.0,4169.5,4169.1,0.022]
[1758729956465,4.9757,4169.4,4169.1,0.022]
[1758729956768,4.069,4169.4,4169.2,0.699]
[1758729957062,4.069,4169.4,4169.3,3.09748415]
[1758729957228,0.37614694,4170.2,4169.8,2.39817796]
[1758729957431,3.0,4170.0,4169.7,2.39824322]
[1758729957631,3.0,4169.8,4169.7,2.39824322]
[1758729957861,3.0,4169.8,4169.7,2.86704322]
[1758729958360,4.069,4169.9,4169.8,2.39819655]
[1758729958561,4.069,4169.9,4169.8,2.62839655]
[1758729959064,6.067,4169.9,4169.8,3.09719655]
[1758729959763,3.0,4170.4,4170.0,2.39806164]
[1758729960064,2.39128615,4170.3,4169.9,2.39813904]
[1758729960274,1.998,4170.3,4170.0,0.6872]
[1758729960434,4.069,4170.2,4170.1,3.08522402]
[1758729960632,1.00160692,4170.5,4170.2,2.39792659]
[1758729960862,6.067,4170.4,4170.1,0.2332]
[1758729961036,0.50613379,4170.3,4170.2,2.39796652]
[1758729961364,0.50613379,4170.3,4170.2,2.63116652]
[1758729961570,1.00160692,4170.5,4170.4,2.39785152]
[1758729961730,5.07060692,4170.5,4170.4,2.39785152]
[1758729961940,4.069,4170.5,4170.4,2.39785152]
[1758729962188,4.069,4170.5,4170.4,2.63105152]
[1758729962483,0.50660561,4170.7,4170.4,0.6872]
[1758729962680,4.069,4170.5,4170.4,2.63105152]
[1758729963198,1.998,4170.7,4170.6,2.39773653]
[1758729963384,6.066,4170.7,4170.6,2.39773653]
[1758729963585,6.57292893,4170.7,4170.6,0.2332]
[1758729963765,0.1192,4170.6,4170.4,0.454]
[1758729963967,4.068,4170.5,4170.4,2.63105152]
[1758729964172,4.068,4170.5,4170.4,3.08505152]
[1758729964496,0.62613417,4170.6,4170.5,2.39779402]
[1758729964660,4.1872,4170.6,4170.5,3.08499402]
[1758729965233,0.1192,4170.6,4170.5,3.08499402]
[1758729965437,4.1872,4170.6,4170.5,3.08499402]
[1758729965656,0.1192,4170.6,4170.5,3.08499402]
[1758729965941,4.1872,4170.6,4170.5,3.08499402]
[1758729966669,4.1872,4170.6,4170.5,0.6872]
[1758729966967,4.1872,4170.6,4170.5,2.39779402]
[1758729970308,4.6552,4170.6,4170.2,2.39795975]
[1758729970471,0.1192,4170.1,4170.0,2.39807035]
[1758729970676,4.1862,4170.1,4170.0,2.39807035]
[1758729971116,4.1862,4170.1,4170.0,2.63127035]
[1758729971617,4.1862,4170.1,4170.0,3.08527035]
[1758729972032,0.1192,4170.1,4170.0,3.08527035]
[1758729972344,4.1862,4170.1,4170.0,3.08527035]
[1758729973063,0.1192,4170.1,4170.0,3.09437035]
[1758729973240,4.1862,4170.1,4170.0,3.09437035]
[1758729974117,0.50723779,4170.6,4170.5,2.39779402]
[1758729974318,0.1192,4170.7,4170.6,2.39773653]
[1758729974660,4.1862,4170.7,4170.6,3.08743653]
[1758729975363,0.50723779,4170.9,4170.7,2.39767904]
[1758729975527,4.067,4170.8,4170.7,2.86077904]
[1758729975747,0.1192,4171.1,4171.0,2.39750659]
[1758729976033,4.1862,4171.1,4171.0,2.39750659]
[1758729976235,0.1192,4171.1,4171.0,3.08720659]
[1758729978065,0.1192,4171.1,4170.4,0.3458]
[1758729978211,0.1192,4171.1,4171.0,2.39750659]
[1758729981481,0.39792,4171.1,4170.6,2.39772955]
[1758729981619,0.39792,4171.1,4170.4,0.6897]
[1758729981828,0.5082539,4171.4,4171.1,2.39744633]
[1758729982020,0.63266724,4171.7,4170.8,0.2266]
[1758729982256,3.0,4171.5,4171.2,2.3973373]
[1758729982462,6.063,4171.4,4171.2,2.3973373]
[1758729982657,0.9516539,4171.3,4170.8,2.39758159]
[1758729982856,0.9516539,4171.3,4170.4,0.2266]
[1758729982857,1.1801539,4171.3,4171.1,2.39743964]
[1758729983063,0.7367539,4171.3,4170.8,2.39758845]
[1758729983357,0.5082539,4171.3,4171.1,2.39743861]
[1758729983561,0.5082539,4171.3,4171.2,2.39739163]
[1758729984357,0.5082539,4171.3,4171.2,2.62399163]
[1758729985262,0.5082539,4171.3,4171.2,2.39739163]
[1758729985836,0.5082539,4171.3,4171.1,2.3974354]
[1758729986162,0.5082539,4171.3,4170.9,0.2266]
[1758729986363,0.5092539,4171.3,4171.0,2.39746817]
[1758729986534,0.5092539,4171.3,4170.9,2.39755776]
[1758729986734,0.5092539,4171.3,4171.2,2.39739163]
[1758729987638,4.066,4171.3,4171.2,2.39739163]
[1758729987837,4.5742539,4171.3,4171.2,2.39739163]
[1758729988871,4.5742539,4171.3,4171.1,2.39740011]
[1758729989072,4.5742539,4171.3,4170.9,3.08724813]
[1758729989239,4.5742539,4171.3,4171.2,2.39739163]
[1758729990674,4.5732539,4171.3,4171.2,2.39739163]
[1758729990887,0.5092539,4171.3,4171.2,3.08709163]
[1758729991178,0.001,4171.3,4171.2,3.08709163]
[1758729992139,0.001,4171.3,4171.2,2.39739163]
[1758729992572,0.001,4171.3,4170.6,0.6897]
[1758729992757,3.0,4171.1,4170.3,0.72088091]
[1758729992957,3.0,4171.1,4170.1,2.40002279]
[1758729992958,1.30456724,4171.0,4170.1,2.40002279]
[1758729993156,0.2285,4170.9,4170.3,2.39788367]
[1758729993363,5.01352726,4170.8,4170.1,0.002]
[1758729993573,0.5082539,4170.7,4170.1,0.002]
[1758729993774,0.63266724,4170.6,4170.1,0.002]
[1758729993945,2.39790902,4170.3,4170.1,0.002]
[1758729994145,9.69366724,4170.2,4170.1,0.002]
[1758729994348,12.80272159,4170.2,4170.1,0.002]
[1758729994546,15.20068811,4170.2,4170.1,0.002]
[1758729995162,12.80272159,4170.2,4170.1,0.002]
[1758729995575,12.13082159,4170.2,4170.1,0.002]
[1758729996356,11.49815435,4170.2,4170.1,0.002]
[1758729997089,11.72665435,4170.2,4170.1,0.002]
[1758729997395,12.17005435,4170.2,4170.1,0.002]
[1758729998095,12.80272159,4170.2,4170.1,0.002]
[1758729998350,12.17005435,4170.2,4170.1,0.002]
[1758729999416,3.5082539,4170.2,4170.1,0.002]
[1758729999722,6.062,4170.2,4170.1,0.2286]
[1758729999878,6.5702539,4170.2,4170.1,0.002]
[1758730000075,9.64012042,4170.2,4170.1,0.002]
[1758730000280,13.90718499,4170.2,4170.1,0.002]
[1758730000690,14.69918499,4170.2,4170.1,0.002]
[1758730001514,5.64026861,4170.2,4170.1,0.002]
[1758730001698,11.70226861,4170.2,4170.1,0.002]
[1758730001864,14.10023513,4170.2,4170.1,0.002]
[1758730002098,14.54043513,4170.2,4170.1,0.002]
[1758730002372,12.14246861,4170.2,4170.1,0.002]
[1758730002599,14.54043513,4170.2,4170.1,0.002]
[1758730002998,8.47843513,4170.2,4170.1,0.002]
[1758730003174,12.14246861,4170.2,4170.1,0.002]
[1758730003475,14.54043513,4170.2,4170.1,0.002]
[1758730003679,12.14246861,4170.2,4170.1,0.002]
[1758730004371,5.44401847,4170.2,4170.1,0.002]
[1758730004571,19.74193356,4170.2,4170.1,0.002]
[1758730005081,3.5082539,4170.2,4170.1,0.002]
[1758730005278,9.062,4170.2,4170.1,0.002]
[1758730005606,22.13980008,4170.2,4170.1,0.002]
[1758730006102,19.74183356,4170.2,4170.1,0.002]
[1758730006305,24.26264129,4170.2,4170.1,0.002]
[1758730007403,25.69109143,4170.2,4170.1,0.002]
[1758730007596,25.05464129,4170.2,4170.1,0.002]
[1758730012707,18.99264129,4170.2,4170.1,0.002]
[1758730012914,25.05464129,4170.2,4170.1,0.002]
[1758730014091,25.54321383,4170.2,4170.1,0.002]
[1758730017135,19.04101383,4170.2,4170.1,0.002]
[1758730017311,25.10301383,4170.2,4170.1,0.002]
[1758730017515,15.92607477,4170.2,4170.1,0.002]
[1758730017710,12.32907806,4170.2,4170.1,0.2381]
[1758730017917,6.26707806,4170.2,4170.1,0.2381]
[1758730018115,9.5702539,4170.2,4170.1,0.6896]
[1758730018502,5.5062539,4170.2,4170.1,3.08762402]
[1758730018703,9.5702539,4170.2,4170.1,0.6896]
[1758730018923,9.5702539,4170.2,4170.1,0.002]
[1758730019223,9.5702539,4170.2,4170.1,0.6896]
[1758730019426,3.5082539,4170.2,4170.1,0.6896]
[1758730019631,3.0,4170.2,4170.1,0.6896]
[1758730019929,9.062,4170.2,4170.1,0.6896]
[1758730020130,9.5702539,4170.2,4170.1,0.6896]
[1758730020295,3.5082539,4170.2,4170.1,0.6896]
[1758730020499,9.062,4170.2,4170.1,0.6896]
[1758730020729,6.5702539,4170.2,4170.1,3.08762402]
[1758730021511,6.5702539,4170.2,4170.1,0.6896]
[1758730021847,4.5722539,4170.2,4170.1,3.11160426]
[1758730022047,4.5722539,4170.2,4170.1,3.08762402]
[1758730022048,4.064,4170.2,4170.1,3.08762402]
[1758730022821,3.84797838,4171.1,4170.1,3.08762402]
[1758730022822,0.63598295,4171.1,4170.1,0.6896]
[1758730023024,0.1192,4170.7,4170.3,2.39790902]
[1758730023220,0.1192,4170.7,4170.6,2.39773653]
[1758730023718,1.999,4171.3,4171.2,2.39739163]
[1758730023930,6.063,4171.3,4171.2,3.07949163]
[1758730024148,6.57318392,4171.3,4171.2,3.07949163]
[1758730024324,0.001,4171.3,4171.2,3.07949163]
[1758730024712,2.038,4171.3,4171.2,3.07949163]
[1758730024922,0.001,4171.3,4171.2,3.07949163]
[1758730026331,4.065,4171.3,4171.2,3.07949163]
[1758730026645,0.001,4171.3,4171.2,3.07949163]
[1758730027047,0.001,4171.3,4171.2,3.10346554]
[1758730027247,0.001,4171.3,4171.2,3.07949163]
[1758730038377,0.001,4171.3,4171.2,2.39739163]
[1758730040071,0.2301,4171.3,4170.6,0.244]
[1758730040363,0.2301,4171.3,4170.1,0.002]
[1758730040364,0.1192,4171.0,4170.7,2.39763439]
[1758730040564,0.1192,4171.0,4170.6,2.39772176]
[1758730041071,0.3483,4171.0,4170.7,2.3976785]
[1758730041432,0.6784,4170.9,4170.6,2.39772165]
[1758730041631,0.2291,4170.8,4170.6,2.39772165]
[1758730041879,0.2291,4170.8,4170.4,2.39784922]
[1758730041880,4.2901,4170.8,4170.4,2.3978244]
[1758730042094,0.1192,4170.5,4170.1,0.002]
[1758730042683,0.3483,4170.5,4170.1,0.002]
[1758730043177,0.1192,4170.5,4170.1,0.002]
[1758730043331,0.6784,4170.4,4170.1,0.002]
[1758730043533,0.1192,4170.2,4170.1,0.002]
[1758730043732,4.1802,4170.2,4170.1,0.002]
[1758730044169,4.1802,4170.2,4170.1,2.40002402]
[1758730044868,4.1802,4170.2,4170.1,0.002]
[1758730045662,4.1802,4170.2,4170.1,2.40002402]
[1758730046551,4.1802,4170.2,4170.1,0.002]
[1758730047281,4.8586,4170.2,4170.1,0.002]
[1758730047653,4.4093,4170.2,4170.1,0.002]
[1758730047848,4.1802,4170.2,4170.1,0.002]
[1758730048153,5.61221184,4170.2,4170.1,0.002]
[1758730048853,4.8586,4170.2,4170.1,0.002]
[1758730050109,10.76555432,4170.2,4170.1,0.002]
[1758730051597,11.55755432,4170.2,4170.1,0.002]
[1758730053301,12.56870956,4170.2,4170.1,0.002]
[1758730053595,12.56870956,4170.2,4169.6,0.002]
[1758730053596,5.39825407,4169.7,4169.6,0.002]
[1758730053899,20.51270481,4169.7,4169.6,0.002]
[1758730054068,21.70009261,4169.7,4169.6,0.002]
[1758730054394,20.85347496,4169.7,4169.6,0.002]
[1758730054597,22.86824018,4169.7,4169.6,0.002]
[1758730054893,25.25952633,4169.7,4169.6,0.002]
[1758730055472,24.41290868,4169.7,4169.6,0.002]
[1758730056779,34.38273576,4169.7,4169.6,0.002]
[1758730057169,26.17390267,4169.7,4169.6,0.002]
[1758730057370,20.11490267,4169.7,4169.6,0.002]
[1758730057681,32.09990868,4169.7,4169.6,0.002]
[1758730058307,31.72376111,4169.7,4169.6,0.002]
[1758730058617,23.48076111,4169.7,4169.6,0.002]
[1758730058912,25.47876111,4169.7,4169.6,0.002]
[1758730059805,19.41876111,4169.7,4169.6,0.002]
[1758730059978,25.47876111,4169.7,4169.6,0.002]
[1758730060179,24.03776111,4169.7,4169.6,0.002]
[1758730060502,24.67086701,4169.7,4169.6,0.002]
[1758730062572,24.03776111,4169.7,4169.6,0.002]
[1758730063671,24.3577551,4169.7,4169.6,0.002]
[1758730063871,25.20437275,4169.7,4169.6,0.002]
[1758730064268,32.56658819,4169.7,4169.6,0.002]
[1758730064809,24.3577551,4169.7,4169.6,0.002]
[1758730065305,25.7987551,4169.7,4169.6,0.002]
[1758730065705,34.00758819,4169.7,4169.6,0.002]
[1758730065906,3.19048415,4169.3,4169.2,0.002]
[1758730066114,28.33838885,4169.3,4169.2,0.002]
[1758730066316,22.12899401,4169.3,4169.2,0.002]
[1758730066635,22.45594614,4169.3,4169.2,0.002]
[1758730067291,21.82244346,4169.3,4169.2,0.002]
[1758730067692,9.95041493,4169.3,4169.2,0.002]
[1758730067902,21.84509857,4169.3,4169.2,0.725]
[1758730068284,21.21129401,4169.3,4169.2,0.725]
[1758730068494,21.84509857,4169.3,4169.2,0.2512]
[1758730068693,0.5089878,4169.3,4169.2,0.725]
[1758730068898,0.5089878,4169.3,4169.2,3.12349719]
[1758730068899,1.998,4169.3,4169.2,3.12349719]
[1758730069092,6.06,4169.3,4169.2,3.12349719]
[1758730069321,0.63380456,4169.9,4169.2,0.725]
[1758730069490,0.1192,4169.3,4169.2,2.40054168]
[1758730069685,4.1812,4169.3,4169.2,2.40054168]
[1758730069926,0.1192,4169.3,4169.2,2.40054168]
[1758730070086,2.1172,4169.7,4169.2,3.12354168]
[1758730070288,4.062,4169.6,4169.3,0.723]
[1758730070515,0.001,4170.2,4169.7,2.39825407]
[1758730070722,1.5492,4170.1,4170.0,2.39808153]
[1758730070899,1.5492,4170.1,4170.0,3.12108153]
[1758730071101,0.1192,4170.1,4170.0,3.12108153]
[1758730071325,4.1812,4170.1,4170.0,3.12108153]
[1758730072318,0.1192,4170.1,4170.0,3.12108153]
[1758730072523,4.1802,4170.1,4170.0,3.12108153]
[1758730073027,0.001,4170.2,4170.1,2.39802402]
[1758730073186,4.062,4170.2,4170.1,3.12102402]
[1758730073401,4.062,4170.2,4170.1,0.723]
[1758730073632,4.5874,4170.2,4169.6,0.4738]
[1758730073841,4.5874,4170.2,4169.9,2.39813252]
[1758730073842,4.4682,4170.2,4169.9,2.39813252]
[1758730074002,4.4682,4170.2,4169.9,0.723]
[1758730074328,0.1192,4169.9,4169.6,2.39830493]
[1758730074509,0.1192,4169.9,4169.8,2.39819655]
[1758730074711,4.061,4169.9,4169.7,0.74698254]
[1758730074908,4.061,4169.9,4169.8,0.723]
[1758730075262,0.1202,4170.2,4169.9,2.39813221]
[1758730075556,4.061,4170.1,4170.0,3.12106411]
[1758730076257,0.1202,4170.2,4170.1,2.39802402]
[1758730076408,4.1812,4170.2,4170.1,3.12102402]
[1758730077147,4.062,4170.2,4170.1,3.12102402]
[1758730078956,4.061,4170.2,4170.1,3.12102402]
[1758730079142,0.001,4170.2,4170.1,3.12102402]
[1758730079849,0.001,4170.2,4170.1,3.24022402]
[1758730080615,0.001,4170.2,4170.1,4.05620426]
[1758730080812,0.001,4170.2,4170.1,7.05620426]
[1758730081133,0.001,4170.2,4170.1,7.03222402]
[1758730081538,0.001,4170.2,4170.1,7.12833732]
[1758730085079,0.001,4171.3,4171.2,36.55685023]
[1758730085440,0.001,4171.3,4171.2,36.65293559]
[1758730089297,0.001,4172.2,4172.1,2.39687447]
[1758730089655,0.001,4172.2,4172.1,3.21667447]
[1758730090107,1e-08,4173.0,4172.9,2.39641496]
[1758730090262,1e-08,4173.0,4172.9,7.94701496]
[1758730090574,1e-08,4173.0,4172.9,10.94701496]
[1758730090893,1e-08,4173.0,4172.9,11.04306225]
[1758730092268,1e-08,4173.0,4172.9,6.98506225]
[1758730092470,1e-08,4173.0,4172.9,7.57316225]
[1758730092995,1e-08,4173.0,4172.9,7.34146225]
[1758730093705,1e-08,4173.0,4172.9,8.05376225]
[1758730093911,1e-08,4173.0,4172.9,2.49246225]
[1758730094101,1e-08,4173.0,4172.9,6.54946225]
[1758730094411,1e-08,4173.0,4172.9,7.26176225]
[1758730094816,1e-08,4173.0,4172.9,8.05376225]
[1758730095812,1e-08,4173.0,4172.9,7.58396225]
[1758730096179,1e-08,4173.0,4172.9,8.05376225]
[1758730096709,1e-08,4173.0,4172.9,8.05276225]
[1758730097512,1e-08,4173.0,4172.9,7.34046225]
[1758730097901,1e-08,4173.0,4172.9,8.05276225]
[1758730098418,1e-08,4173.0,4172.9,3.28446225]
[1758730098717,1e-08,4173.0,4172.9,6.54746225]
[1758730098917,0.24350001,4173.0,4172.9,6.54746225]
[1758730099420,1e-08,4173.0,4172.9,6.45141496]
[1758730100219,1e-08,4173.0,4172.9,6.57061496]
[1758730101280,1e-08,4173.0,4172.9,2.51561496]
[1758730103202,0.69880001,4173.0,4172.9,2.51561496]
[1758730103386,1e-08,4173.0,4172.9,2.51561496]
[1758730106023,0.24350001,4173.0,4172.9,2.51561496]
[1758730106223,0.69880001,4173.0,4172.9,2.51561496]
[1758730107013,0.24350001,4173.0,4172.9,2.51561496]
[1758730107213,1e-08,4173.0,4172.9,2.51561496]
[1758730107824,0.45530001,4173.0,4172.9,2.51561496]
[1758730108024,1e-08,4173.0,4172.9,2.51561496]
[1758730110138,0.69880001,4173.0,4172.9,2.51561496]
[1758730110349,0.45530001,4173.0,4172.9,2.51561496]
[1758730110534,0.1192,4172.9,4172.8,0.002]
[1758730110851,2.62095226,4172.9,4172.8,2.39847239]
[1758730111019,3.31975226,4172.9,4172.8,0.002]
[1758730111218,2.45761628,4172.9,4172.8,0.002]
[1758730111423,3.31975226,4172.9,4172.8,0.002]
[1758730111831,1.32375226,4172.9,4172.8,0.002]
[1758730112157,7.37375226,4172.9,4172.8,0.002]
[1758730112329,8.21808499,4172.9,4172.8,0.002]
[1758730112867,11.21808499,4172.9,4172.8,0.002]
[1758730113019,11.8742345,4172.9,4172.8,0.002]
[1758730113534,13.14416097,4172.9,4172.8,0.002]
[1758730114050,15.54057593,4172.9,4172.8,0.002]
[1758730114356,15.54057593,4172.9,4172.4,0.002]
[1758730114357,2.39664469,4172.5,4172.4,0.002]
[1758730114650,9.95639695,4172.5,4172.4,0.002]
[1758730114821,14.05611327,4172.5,4172.4,0.002]
[1758730115221,16.54434965,4172.5,4172.4,0.002]
[1758730115417,2.39687447,4172.1,4172.0,0.002]
[1758730115616,7.59768504,4172.1,4172.0,0.002]
[1758730115819,8.29648504,4172.1,4172.0,0.002]
[1758730116123,9.3658131,4172.1,4172.0,0.002]
[1758730116321,7.67075479,4172.1,4172.0,0.002]
[1758730117523,3.50575226,4172.1,4172.0,0.002]
[1758730117758,9.55575226,4172.1,4172.0,0.002]
[1758730117952,11.10082881,4172.1,4172.0,0.002]
[1758730118520,13.49770328,4172.1,4172.0,0.002]
[1758730118756,12.65142673,4172.1,4172.0,0.002]
[1758730118954,14.28318759,4172.1,4172.0,0.002]
[1758730119154,15.07518759,4172.1,4172.0,0.002]
[1758730119769,16.7702459,4172.1,4172.0,0.002]
[1758730120095,10.7202459,4172.1,4172.0,0.002]
[1758730120410,21.31718759,4172.1,4172.0,0.002]
[1758730120566,23.0122459,4172.1,4172.0,0.002]
[1758730120767,22.75818759,4172.1,4172.0,0.002]
[1758730120966,2.39716176,4171.6,4171.5,0.002]
[1758730121169,31.2160713,4171.6,4171.5,0.002]
[1758730121405,33.3558713,4171.6,4171.5,0.002]
[1758730122196,33.73186897,4171.6,4171.5,0.002]
[1758730125264,34.99466684,4171.6,4171.5,0.002]
[1758730125460,33.73186897,4171.6,4171.5,0.002]
[1758730127369,34.99400527,4171.6,4171.5,0.002]
[1758730129098,2.39796652,4170.2,4170.1,0.02]
[1758730129281,11.44996652,4170.2,4170.1,0.02]
[1758730129508,11.95571878,4170.2,4170.1,0.02]
[1758730129716,12.19941878,4170.2,4170.1,0.02]
[1758730129876,12.67401878,4170.2,4170.1,0.02]
[1758730130079,14.1930362,4170.2,4170.1,0.02]
[1758730130512,14.9850362,4170.2,4170.1,0.02]
[1758730131516,17.05640502,4170.2,4170.1,0.02]
[1758730132204,17.05640592,4170.2,4170.1,0.02]
[1758730133693,17.05623789,4170.2,4170.1,0.02]
[1758730133891,16.80213029,4170.2,4170.1,0.02]
[1758730134096,17.43233454,4170.2,4170.1,0.02]
[1758730134299,16.80213029,4170.2,4170.1,0.02]
[1758730135822,16.80213029,4170.2,4170.1,0.022]
[1758730136720,14.08683029,4170.2,4170.1,0.022]
[1758730137017,23.04813029,4170.2,4170.1,0.022]
[1758730137592,23.88942918,4170.2,4170.1,0.022]
[1758730138324,23.04813029,4170.2,4170.1,0.022]
[1758730138796,22.57353029,4170.2,4170.1,0.022]
[1758730139000,23.41500831,4170.2,4170.1,0.022]
[1758730139302,22.57353029,4170.2,4170.1,0.022]
[1758730139617,22.32983029,4170.2,4170.1,0.022]
[1758730139933,24.02227862,4170.2,4170.1,0.022]
[1758730140155,22.57503029,4170.2,4170.1,0.022]
[1758730140436,15.7087362,4170.2,4170.1,0.7333]
[1758730140945,15.7087362,4170.2,4170.1,0.022]
[1758730141142,16.3844362,4170.2,4170.1,0.022]
[1758730141372,16.97068453,4170.2,4170.1,0.022]
[1758730141953,15.76014303,4170.2,4170.1,0.7333]
[1758730142097,14.24112561,4170.2,4170.1,0.7333]
[1758730142297,11.39971878,4170.2,4170.1,0.7333]
[1758730142522,13.39771878,4170.2,4170.1,0.7333]
[1758730142805,13.39771878,4170.2,4170.1,0.2589]
[1758730143133,13.39771878,4170.2,4170.1,0.7333]
[1758730143332,15.1034747,4170.2,4170.1,0.7333]
[1758730143712,7.34471878,4170.2,4170.1,0.7333]
[1758730143913,13.39771878,4170.2,4170.1,0.7333]
[1758730144140,10.99975226,4170.2,4170.1,0.7333]
[1758730144340,7.34471878,4170.2,4170.1,0.7333]
[1758730144544,13.39771878,4170.2,4170.1,0.7333]
[1758730145028,7.34471878,4170.2,4170.1,0.7333]
[1758730145231,13.39771878,4170.2,4170.1,0.7333]
[1758730145554,12.26170059,4170.2,4170.1,0.7333]
[1758730145733,14.65966711,4170.2,4170.1,0.7333]
[1758730146040,16.40302363,4170.2,4170.1,0.2589]
[1758730146197,10.35002363,4170.2,4170.1,0.2589]
[1758730146400,10.35002363,4170.2,4170.1,0.7333]
[1758730146401,12.26170059,4170.2,4170.1,0.7333]
[1758730146600,14.65966711,4170.2,4170.1,0.7333]
[1758730147449,1.441,4169.9,4169.6,0.002]
[1758730147747,6.83925407,4169.7,4169.6,0.002]
[1758730147946,9.02482662,4169.7,4169.6,0.002]
[1758730148433,6.83948415,4169.3,4169.2,0.002]
[1758730148740,13.39823641,4169.3,4169.2,0.2389]
[1758730148947,10.99975226,4169.3,4169.2,0.7133]
[1758730149157,13.92363987,4169.3,4169.2,0.7133]
[1758730149333,13.92363987,4169.3,4169.2,0.002]
[1758730150343,17.08022399,4169.3,4169.2,0.002]
[1758730150506,26.58982704,4169.3,4169.2,0.002]
[1758730150702,24.90094292,4169.3,4169.2,0.002]
[1758730150907,7.63154168,4169.2,4168.4,0.2369]
[1758730151110,12.34394374,4169.2,4168.6,0.2369]
[1758730151760,18.39694374,4169.2,4168.6,0.2369]
[1758730152355,19.08854374,4169.2,4168.6,0.2369]
[1758730152556,18.64054374,4169.2,4168.6,0.2369]
[1758730152908,18.39694374,4169.2,4168.6,0.2369]
[1758730154110,18.84494374,4169.2,4168.3,0.002]
[1758730154329,18.39694374,4169.2,4168.6,0.2494]
[1758730154610,9.15340206,4169.2,4169.1,0.2714]
[1758730154819,9.15340206,4169.2,4169.1,0.7129]